lending/lending_fUSD_20240510
["ID","MTS","AMOUNT","RATE_DAILY","PERIOD"]
[326765473,1715332249318,-515.30525833,0.00027397,4]
[326765474,1715332249327,-688.36,0.00027397,4]
[326765475,1715332249336,-500.0,0.00027397,4]
[326765476,1715332249345,-1355.47,0.00027397,4]
[326765477,1715332249355,-500.0,0.00027397,4]
[326765478,1715332249365,-489.63788113,0.00027397,4]
[326765479,1715332249374,-19068.24,0.00027397,4]
[326765480,1715332249383,-8470.51,0.00027397,4]
[326765481,1715332249392,-2675.4,0.00027397,4]
[326765482,1715332249403,-14607.81,0.00027397,4]
[326765483,1715332249412,-1444.44,0.00027397,4]
[326765484,1715332249421,-500.0,0.00027397,4]
[326765485,1715332249431,-520.30471962,0.00027397,4]
[326765486,1715332249440,-512.51501201,0.00027397,4]
[326765487,1715332249449,-768.92,0.00027397,4]
[326765488,1715332249459,-520.38133617,0.00027397,4]
[326765489,1715332249468,-515.05329101,0.00027397,4]
[326765490,1715332249477,-1889.04,0.00027397,4]
[326765491,1715332249486,-151.0,0.00027397,7]
[326765492,1715332249496,-1004.72,0.00027397,4]
[326765493,1715332249505,-1790.61,0.00027397,4]
[326765494,1715332249514,-500.0,0.00027397,4]
[326765495,1715332249524,-151.0,0.00027397,7]
[326765496,1715332249533,-514.88242045,0.00027397,4]
[326765497,1715332249542,-151.0,0.00027397,7]
[326765498,1715332249551,-500.0,0.00027397,4]
[326765499,1715332249560,-2623.82,0.00027397,4]
[326765500,1715332249575,-780.57,0.00027397,4]
[326765501,1715332249584,-500.0,0.00027397,4]
[326765502,1715332249593,-500.0,0.00027397,4]
[326765503,1715332249602,-2140.07,0.00027397,4]
[326765504,1715332249610,-1652.96,0.00027397,4]
[326765505,1715332249619,-775.7,0.00027397,4]
[326765506,1715332249629,-513.08012576,0.00027397,4]
[326765507,1715332249638,-2758.94,0.00027397,4]
[326765508,1715332249648,-504.39951251,0.00027397,4]
[326765509,1715332249658,-500.0,0.00027397,4]
[326765510,1715332249667,-662.88,0.00027397,4]
[326765511,1715332249676,-1186.94,0.00027397,4]
[326765512,1715332249685,-502.95380028,0.00027397,4]
[326765513,1715332249695,-682.16,0.00027397,4]
[326765514,1715332249704,-1643.126751,0.00027397,7]
[326765515,1715332249713,-2492.13,0.00027397,4]
[326765516,1715332249723,-37146.86,0.00027397,4]
[326765517,1715332249732,-500.0,0.00027397,4]
[326765518,1715332249741,-1643.126751,0.00027397,7]
[326765519,1715332249750,-1643.126751,0.00027397,7]
[326765520,1715332249760,-2144.38,0.00027397,4]
[326765521,1715332249769,-779.05,0.00027397,4]
[326765522,1715332249779,-500.0,0.00027397,4]
[326765523,1715332249788,-500.0,0.00027397,4]
[326765524,1715332249797,-3212.73,0.00027397,4]
[326765525,1715332249806,-1643.126751,0.00027397,7]
[326765526,1715332249815,-1643.126751,0.00027397,7]
[326765527,1715332249825,-1173.78,0.00027397,4]
[326765528,1715332249833,-1643.126751,0.00027397,7]
[326765529,1715332249842,-500.0,0.00027397,4]
[326765530,1715332249852,-2559.98,0.00027397,4]
[326765531,1715332249861,-151.0,0.00027397,7]
[326765532,1715332249871,-500.0,0.00027397,4]
[326765533,1715332249880,-151.0,0.00027397,7]
[326765534,1715332249889,-1370.4,0.00027397,4]
[326765535,1715332249899,-151.0,0.00027397,7]
[326765536,1715332249908,-500.0,0.00027397,4]
[326765537,1715332249918,-3486.1,0.00027397,4]
[326765538,1715332249927,-1744.07,0.00027397,4]
[326765539,1715332249936,-3613.0,0.00027397,4]
[326765540,1715332249945,-500.0,0.00027397,4]
[326765541,1715332249954,-513.63196035,0.00027397,4]
[326765542,1715332249963,-500.0,0.00027397,4]
[326765543,1715332249972,-7328.35,0.00027397,4]
[326765544,1715332249982,-1744.25,0.00027397,4]
[326765545,1715332249991,-151.0,0.00027397,7]
[326765546,1715332250000,-151.0,0.00027397,7]
[326765547,1715332250009,-151.0,0.00027397,7]
[326765548,1715332250019,-1562.19,0.00027397,4]
[326765549,1715332250029,-1206.99,0.00027397,4]
[326765550,1715332250038,-500.0,0.00027397,4]
[326765551,1715332250047,-1685.26,0.00027397,4]
[326765552,1715332250057,-506.09501374,0.00027397,4]
[326765553,1715332250067,-2240.67,0.00027397,4]
[326765554,1715332250076,-500.0,0.00027397,4]
[326765555,1715332250085,-516.70451726,0.00027397,4]
[326765556,1715332250095,-500.0,0.00027397,4]
[326765557,1715332250105,-1772.2,0.00027397,4]
[326765558,1715332250114,-2284.42,0.00027397,4]
[326765559,1715332250123,-4988.74,0.00027397,4]
[326765560,1715332250133,-500.0,0.00027397,4]
[326765561,1715332250142,-1149.47,0.00027397,4]
[326765562,1715332250153,-551.03556545,0.00027397,4]
[326765563,1715332250163,-500.0,0.00027397,4]
[326765564,1715332250171,-3016.79,0.00027397,4]
[326765565,1715332250181,-529.34,0.00027397,4]
[326765566,1715332250191,-500.0,0.00027397,4]
[326765567,1715332250201,-673.19,0.00027397,4]
[326765568,1715332250211,-500.0,0.00027397,4]
[326765569,1715332250221,-500.0,0.00027397,4]
[326765570,1715332250231,-503.92332335,0.00027397,4]
[326765571,1715332250240,-4492.63,0.00027397,4]
[326765572,1715332250249,-7562.38,0.00027397,4]
[326765573,1715332250259,-513.33869658,0.00027397,4]
[326765574,1715332250271,-3103.08,0.00027397,4]
[326765575,1715332250280,-794.72,0.00027397,4]
[326765576,1715332250290,-500.0,0.00027397,4]
[326765577,1715332250299,-628.82328797,0.00027397,4]
[326765578,1715332250308,-500.0,0.00027397,4]
[326765579,1715332250317,-500.0,0.00027397,4]
[326765580,1715332250327,-1197.45,0.00027397,4]
[326765581,1715332250336,-506.84844363,0.00027397,4]
[326765582,1715332250345,-5000.0,0.00027397,4]
[326765583,1715332250354,-9372.8,0.00027397,4]
[326765584,1715332250364,-151.0,0.00027397,7]
[326765585,1715332250373,-151.0,0.00027397,7]
[326765586,1715332250382,-547.41,0.00027397,4]
[326765587,1715332250392,-151.0,0.00027397,7]
[326765588,1715332250402,-1643.2,0.00027397,4]
[326765589,1715332250411,-500.0,0.00027397,4]
[326765590,1715332250420,-512.34625439,0.00027397,4]
[326765591,1715332250429,-500.0,0.00027397,4]
[326765592,1715332250439,-27855.3,0.00027397,4]
[326765593,1715332250447,-500.0,0.00027397,4]
[326765594,1715332250457,-2331.7,0.00027397,4]
[326765595,1715332250465,-506.05123482,0.00027397,4]
[326765596,1715332250475,-643.42,0.00027397,4]
[326765597,1715332250484,-500.0,0.00027397,4]
[326765598,1715332250493,-645.42,0.00027397,4]
[326765599,1715332250502,-4074.12,0.00027397,4]
[326765600,1715332250511,-4074.12,0.00027397,5]
[326765601,1715332250521,-500.0,0.00027397,4]
[326765602,1715332250530,-1240.83,0.00027397,4]
[326765603,1715332250539,-4074.12,0.00027397,6]
[326765604,1715332250548,-4074.12,0.00027397,7]
[326765605,1715332250558,-4074.12,0.00027397,8]
[326765606,1715332250567,-3708.73,0.00027397,4]
[326765607,1715332250575,-4074.12,0.00027397,9]
[326765608,1715332250585,-2855.45,0.00027397,4]
[326765609,1715332250594,-4074.12,0.00027397,10]
[326765610,1715332250603,-4074.12,0.00027397,11]
[326765611,1715332250613,-4074.12,0.00027397,12]
[326765612,1715332250622,-4074.12,0.00027397,13]
[326765613,1715332250631,-4074.12,0.00027397,14]
[326765614,1715332250640,-4074.12,0.00027397,15]
[326765615,1715332250650,-503.26909359,0.00027397,4]
[326765616,1715332250660,-1361.69,0.00027397,4]
[326765617,1715332250669,-4074.12,0.00027397,16]
[326765618,1715332250678,-4074.12,0.00027397,17]
[326765619,1715332250688,-4074.12,0.00027397,18]
[326765620,1715332250697,-4074.12,0.00027397,19]
[326765621,1715332250707,-4074.12,0.00027397,20]
[326765622,1715332250716,-4074.12,0.00027397,21]
[326765623,1715332250726,-2644.57,0.00027397,4]
[326765624,1715332250735,-519.00800314,0.00027397,4]
[326765625,1715332250744,-151.0,0.00027397,7]
[326765626,1715332250753,-151.0,0.00027397,7]
[326765627,1715332250763,-151.0,0.00027397,7]
[326765628,1715332250772,-7123.31,0.00027397,4]
[326765629,1715332250781,-3632.44,0.00027397,4]
[326765630,1715332250791,-506.26174037,0.00027397,4]
[326765631,1715332250800,-500.0,0.00027397,4]
[326765632,1715332250809,-500.0,0.00027397,4]
[326765633,1715332250818,-342.7238901,0.00027397,4]
[326765634,1715332250827,-348.83591082,0.00027397,4]
[326765635,1715332250836,-500.0,0.00027397,4]
[326765636,1715332250845,-884.73,0.00027397,4]
[326765637,1715332250854,-500.0,0.00027397,4]
[326765638,1715332250864,-500.0,0.00027397,4]
[326765639,1715332250874,-508.11893494,0.00027397,4]
[326765640,1715332250883,-500.0,0.00027397,4]
[326765641,1715332250892,-3169.73,0.00027397,4]
[326765642,1715332250901,-500.0,0.00027397,4]
[326765643,1715332250910,-506.10555744,0.00027397,4]
[326765644,1715332250919,-151.0,0.00027397,7]
[326765645,1715332250928,-151.0,0.00027397,7]
[326765646,1715332250937,-151.0,0.00027397,7]
[326765647,1715332250946,-500.0,0.00027397,4]
[326765648,1715332250955,-171.53036172,0.00027397,4]
[326765649,1715332250965,-2206.61,0.00027397,4]
[326765650,1715332250975,-652.77,0.00027397,4]
[326765651,1715332250984,-3355.66,0.00027397,4]
[326765652,1715332250993,-500.0,0.00027397,4]
[326765653,1715332251002,-500.0,0.00027397,4]
[326765654,1715332251011,-1549.57,0.00027397,4]
[326765655,1715332251019,-608.93,0.00027397,4]
[326765656,1715332251028,-500.0,0.00027397,4]
[326765657,1715332251037,-1709.92,0.00027397,4]
[326765658,1715332251047,-151.0,0.00027397,7]
[326765659,1715332251056,-500.0,0.00027397,4]
[326765660,1715332251065,-151.0,0.00027397,7]
[326765661,1715332251074,-151.0,0.00027397,7]
[326765662,1715332251084,-500.0,0.00027397,4]
[326765663,1715332251093,-743.73,0.00027397,4]
[326765664,1715332251103,-2359.88,0.00027397,4]
[326765665,1715332251111,-151.0,0.00027397,7]
[326765666,1715332251121,-823.29,0.00027397,4]
[326765667,1715332251130,-151.0,0.00027397,7]
[326765668,1715332251139,-4190.54,0.00027397,4]
[326765669,1715332251148,-151.0,0.00027397,7]
[326765670,1715332251158,-500.0,0.00027397,4]
[326765671,1715332251167,-3690.14,0.00027397,4]
[326765672,1715332251176,-503.38475512,0.00027397,4]
[326765673,1715332251186,-2956.94,0.00027397,4]
[326765674,1715332251199,-1736.98,0.00027397,4]
[326765675,1715332251208,-500.0,0.00027397,4]
[326765676,1715332251217,-442.51952049,0.00027397,4]
[326765677,1715332251226,-500.0,0.00027397,4]
[326765678,1715332251236,-1389.08,0.00027397,4]
[326765679,1715332251245,-539.37310195,0.00027397,4]
[326765680,1715332251254,-2302.9,0.00027397,4]
[326765681,1715332251263,-2395.12,0.00027397,4]
[326765682,1715332251274,-500.0,0.00027397,4]
[326765683,1715332251283,-3062.47,0.00027397,4]
[326765684,1715332251292,-4349.64,0.00027397,4]
[326765685,1715332251301,-593.53,0.00027397,4]
[326765686,1715332251310,-567.88,0.00027397,4]
[326765687,1715332251319,-610.76,0.00027397,4]
[326765688,1715332251328,-5782.52,0.00027397,4]
[326765689,1715332251338,-2801.21,0.00027397,4]
[326765690,1715332251347,-500.0,0.00027397,4]
[326765691,1715332251356,-3250.36,0.00027397,4]
[326765692,1715332251366,-1067.94,0.00027397,4]
[326765693,1715332251375,-500.0,0.00027397,4]
[326765694,1715332251384,-500.0,0.00027397,4]
[326765695,1715332251393,-500.0,0.00027397,4]
[326765696,1715332251403,-500.0,0.00027397,4]
[326765697,1715332251413,-864.09,0.00027397,4]
[326765698,1715332251422,-500.0,0.00027397,4]
[326765699,1715332251430,-1932.94,0.00027397,4]
[326765700,1715332251439,-504.67723085,0.00027397,4]
[326765701,1715332251448,-500.0,0.00027397,4]
[326765702,1715332251457,-1603.02,0.00027397,4]
[326765703,1715332251466,-517.17504618,0.00027397,4]
[326765704,1715332251475,-6886.32,0.00027397,4]
[326765705,1715332251484,-500.0,0.00027397,4]
[326765706,1715332251493,-706.15,0.00027397,4]
[326765707,1715332251502,-742.72,0.00027397,4]
[326765708,1715332251512,-500.0,0.00027397,4]
[326765709,1715332251521,-1232.76,0.00027397,4]
[326765710,1715332251530,-500.0,0.00027397,4]
[326765711,1715332251539,-500.0,0.00027397,5]
[326765712,1715332251548,-500.0,0.00027397,6]
[326765713,1715332251558,-1709.08,0.00027397,4]
[326765714,1715332251567,-500.0,0.00027397,7]
[326765715,1715332251577,-500.0,0.00027397,8]
[326765716,1715332251586,-2195.4386989,0.00027397,4]
[326765717,1715332252070,-1461.85051167,0.00027397,4]
[326765718,1715332252081,-512.0,0.00027397,4]
[326765719,1715332252227,-374.56443819,0.00027397,4]
[326765720,1715332252240,-263.66000001,0.00027397,4]
[326765721,1715332252251,-5019.67019031,0.00027397,4]
[326765722,1715332252261,-405.18871256,0.00027397,4]
[326765723,1715332252512,-1258.4826193,0.00026349,2]
[326765724,1715332252522,-3366.9562018,0.00026776,2]
[326765725,1715332252531,-1840.32999467,0.00027397,4]
[326765726,1715332252541,-710.16305371,0.00027397,4]
[326765727,1715332252720,-344.68046227,0.00021879,2]
[326765728,1715332252730,-283.49953773,0.00026761,2]
[326765729,1715332252742,-974.98308157,0.00026761,2]
[326765730,1715332252751,-119.53457843,0.00027342,2]
[326765731,1715332252831,-3247.42162347,0.00027342,2]
[326765732,1715332252840,-6142.04439998,0.00027397,4]
[326765733,1715332252850,-500.0,0.00027397,9]
[326765734,1715332252860,-515.62037492,0.00027397,10]
[326765735,1715332252869,-2299.5,0.00027397,4]
[326765736,1715332252879,-500.0,0.00027397,4]
[326765737,1715332252888,-1571.6,0.00027397,4]
[326765738,1715332252897,-1846.64,0.00027397,4]
[326765739,1715332252907,-500.0,0.00027397,4]
[326765740,1715332252917,-500.0,0.00027397,2]
[326765741,1715332252927,-151.0,0.00027397,7]
[326765742,1715332252936,-6681.59,0.00027397,4]
[326765743,1715332252945,-500.0,0.00027397,4]
[326765744,1715332252955,-843.34,0.00027397,4]
[326765745,1715332252964,-1197.73,0.00027397,4]
[326765746,1715332252973,-500.0,0.00027397,4]
[326765747,1715332252983,-3499.48,0.00027397,4]
[326765748,1715332252992,-4040.81,0.00027397,4]
[326765749,1715332253001,-669.52,0.00027397,4]
[326765750,1715332253010,-500.0,0.00027397,4]
[326765751,1715332253019,-151.0,0.00027397,7]
[326765752,1715332253029,-151.0,0.00027397,7]
[326765753,1715332253038,-564.79970613,0.00027397,4]
[326765754,1715332253047,-2025.98,0.00027397,4]
[326765755,1715332253056,-792.33,0.00027397,4]
[326765756,1715332253065,-151.0,0.00027397,7]
[326765757,1715332253075,-556.15,0.00027397,4]
[326765758,1715332253085,-151.0,0.00027397,7]
[326765759,1715332253094,-151.0,0.00027397,7]
[326765760,1715332253103,-740.93,0.00027397,4]
[326765761,1715332253112,-1228.63,0.00027397,4]
[326765762,1715332253122,-500.0,0.00027397,4]
[326765763,1715332253132,-1730.03,0.00027397,4]
[326765764,1715332253141,-2526.07,0.00027397,4]
[326765765,1715332253151,-500.0,0.00027397,4]
[326765766,1715332253160,-721.42,0.00027397,4]
[326765767,1715332253170,-518.140834,0.00027397,7]
[326765768,1715332253179,-518.140834,0.00027397,7]
[326765769,1715332253190,-518.140834,0.00027397,7]
[326765770,1715332253205,-1429.89,0.00027397,4]
[326765771,1715332253215,-1115.72,0.00027397,4]
[326765772,1715332253224,-151.0,0.00027397,7]
[326765773,1715332253235,-518.140834,0.00027397,7]
[326765774,1715332253244,-518.140834,0.00027397,7]
[326765775,1715332253254,-151.0,0.00027397,7]
[326765776,1715332253264,-518.140834,0.00027397,7]
[326765777,1715332253274,-151.0,0.00027397,7]
[326765778,1715332253285,-150.32,0.00027397,2]
[326765779,1715332253296,-3488.95,0.00027397,2]
[326765780,1715332253305,-154.680158,0.00027397,7]
[326765781,1715332253314,-607.96,0.00027397,10]
[326765782,1715332253323,-150.0,0.00027397,2]
[326765783,1715332253333,-150.0,0.00027397,2]
[326765784,1715332253342,-150.0,0.00027397,2]
[326765785,1715332253352,-150.0,0.00027397,2]
[326765786,1715332253361,-150.0,0.00027397,2]
[326765787,1715332253371,-150.0,0.00027397,2]
[326765788,1715332253381,-150.0,0.00027397,2]
[326765789,1715332253390,-150.0,0.00027397,2]
[326765790,1715332253400,-150.0,0.00027397,2]
[326765791,1715332253415,-150.0,0.00027397,2]
[326765792,1715332253426,-151.14,0.00027397,2]
[326765793,1715332253435,-150.0,0.00027397,2]
[326765794,1715332253444,-150.0,0.00027397,2]
[326765795,1715332253454,-150.0,0.00027397,2]
[326765796,1715332253463,-837.0,0.000274,2]
[326765797,1715332253473,-306.23,0.000274,2]
[326765798,1715332253482,-487.22404582,0.000274,2]
[326765799,1715332253491,-338.87,0.000274,2]
[326765800,1715332253507,-500.0,0.000274,2]
[326765801,1715332253516,-155.0,0.000274,2]
[326765802,1715332253526,-504.4925,0.000274,2]
[326765803,1715332253536,-504.4925,0.000274,2]
[326765804,1715332253546,-155.98861002,0.000274,2]
[326765805,1715332253555,-762.91673914,0.000274,2]
[326765806,1715332253564,-202.1,0.000274,4]
[326765807,1715332253573,-150.0,0.00027402,2]
[326765808,1715332253582,-5987.612562,0.00027402,2]
[326765809,1715332253591,-606.59936138,0.00027402,2]
[326765810,1715332253601,-43736.5565875,0.00027402,2]
[326765811,1715332253610,-3602.0032295,0.00027402,2]
[326765812,1715332253624,-560.16791513,0.00027402,2]
[326765813,1715332253635,-40179.9154472,0.00027403,2]
[326765814,1715332253645,-10458.0761832,0.00027479,2]
[326765815,1715332253655,-157.051014,0.00027498,14]
[326765816,1715332253664,-375.44744279,0.000276,2]
[326765817,1715332253673,-8054.33776084,0.00027643,4]
[326765818,1715332253720,-155.0,0.00017259,2]
[326765819,1715332253730,-190.30254868,0.00027348,2]
[326765820,1715332253742,-1068.18007064,0.00027348,2]
[326765821,1715332253752,-500.0,0.00027397,4]
[326765822,1715332253762,-1945.66223916,0.00027643,4]
[326765823,1715332253771,-4074.12,0.00027651,22]
[326765824,1715332253780,-151.0,0.00027652,7]
[326765825,1715332253789,-151.0,0.00027652,7]
[326765826,1715332253799,-151.0,0.00027652,7]
[326765827,1715332253808,-409.625854,0.00027652,7]
[326765828,1715332253817,-409.625854,0.00027652,7]
[326765829,1715332253827,-285.364364,0.00027652,7]
[326765830,1715332253837,-285.364364,0.00027652,7]
[326765831,1715332253847,-151.0,0.00027652,7]
[326765832,1715332253856,-151.0,0.00027652,7]
[326765833,1715332253865,-3432.71293383,0.00027652,2]
[326765834,1715332254923,-195.49505791,0.00015,2]
[326765835,1715332254932,-723.26173209,0.00023982,2]
[326765836,1715332254943,-335.73826791,0.00023982,2]
[326765837,1715332254952,-1072.80775125,0.00024,2]
[326765838,1715332254961,-1059.0,0.00026982,2]
[326765839,1715332254971,-150.01,0.00027396,2]
[326765840,1715332254980,-151.0,0.00027397,7]
[326765841,1715332254989,-151.0,0.00027397,7]
[326765842,1715332254998,-151.0,0.00027397,7]
[326765843,1715332255007,-151.0,0.00027397,7]
[326765844,1715332255016,-475.99073195,0.00027652,2]
[326765845,1715332255031,-1550.761,0.00027652,2]
[326765846,1715332255042,-627.44,0.00027652,2]
[326765847,1715332255053,-270.42728545,0.00027652,2]
[326765848,1715332255063,-2053.035304,0.00027652,2]
[326765849,1715332255136,-360.77451329,0.00027652,2]
[326765850,1715332255174,-9877.84840012,0.00027652,2]
[326765851,1715332255278,-1523.78274965,0.00027652,2]
[326765852,1715332255290,-14464.50429741,0.00027652,2]
[326765853,1715332255300,-9504.83356068,0.00027652,2]
[326765854,1715332255390,-537.07638197,0.00027652,2]
[326765855,1715332255419,-2012.30546814,0.00027652,2]
[326765856,1715332255442,-558.93488195,0.00027396,2]
[326765865,1715333433346,-535.13320909,0.00012996,2]
[326765867,1715333433356,-155.0,0.00012999,2]
[326765868,1715333433366,-180.3755095,0.00013,2]
[326765869,1715333433376,-187.47347935,0.000149,2]
[326765870,1715333433386,-496.0,0.000156,2]
[326765871,1715333433396,-5000.0,0.00019,2]
[326765872,1715333433407,-158.31,0.00019178,2]
[326765875,1715333433418,-169.06,0.00019178,2]
[326765877,1715333433428,-499.99,0.00019452,2]
[326765878,1715333433437,-584.52528753,0.0002,2]
[326765879,1715333433447,-158.30395957,0.00022,2]
[326765880,1715333433456,-250.0,0.00024531,2]
[326765881,1715333433466,-195.14,0.00024609,2]
[326765882,1715333433475,-185.75,0.00024647,2]
[326765883,1715333433484,-250.0,0.00024733,2]
[326765884,1715333433494,-95.13208995,0.00024758,2]
[326765901,1715333437825,-873.81182588,0.00024,2]
[326765902,1715333437838,-198.99592537,0.00024,2]
[326765903,1715333437850,-154.86791005,0.00024758,2]
[326765904,1715333437861,-150.0,0.00024767,2]
[326765905,1715333437872,-485.32,0.00024768,2]
[326765906,1715333437883,-181.93473319,0.00024789,2]
[326765907,1715333437925,-68.06526681,0.00024789,2]
[326765908,1715333437937,-2574.13073793,0.000249,2]
[326765909,1715333437948,-155.0,0.00025,2]
[326765910,1715333437960,-925.8669637,0.00025,2]
[326765911,1715333437971,-12641.25830243,0.00025,2]
[326765912,1715333437983,-1012.97346004,0.00025182,2]
[326765913,1715333437995,-386.974,0.00025447,2]
[326765914,1715333438006,-1059.0,0.00025447,2]
[326765915,1715333438018,-804.77,0.00025447,2]
[326765916,1715333438029,-288.0,0.00025447,2]
[326765917,1715333438040,-5909.0,0.00025447,2]
[326765918,1715333438051,-1000.0,0.0002571,2]
[326765919,1715333438062,-158.24,0.00026202,2]
[326765920,1715333438073,-2006.35426902,0.00026268,2]
[326765921,1715333438084,-375.57772983,0.00026269,3]
[326765922,1715333438095,-155.0,0.00026847,2]
[326765923,1715333438105,-1127.19144373,0.00026848,2]
[326765924,1715333438116,-1082.25661911,0.00026848,2]
[326765925,1715333438127,-150.0,0.00026849,2]
[326765926,1715333438138,-10000.0,0.00026851,2]
[326765927,1715333438149,-1000.0,0.00026851,2]
[326765928,1715333438159,-180.0,0.0002698,2]
[326765929,1715333438172,-150.0,0.00027,2]
[326765930,1715333438183,-158.31,0.00027032,2]
[326765931,1715333438193,-200.0,0.00027085,2]
[326765932,1715333438204,-1560.04802844,0.00027133,2]
[326765933,1715333438215,-500.0,0.00027178,2]
[326765934,1715333438225,-659.5783,0.00027196,2]
[326765937,1715333438236,-460.30675903,0.00027197,2]
[326765939,1715333438247,-190.46950754,0.00027295,2]
[326765940,1715333438257,-10011.51183533,0.00027296,2]
[326765941,1715333438275,-368.4034386,0.00027296,2]
[326765942,1715333438330,-12934.04625542,0.00027296,2]
[326765943,1715333438346,-545.03939917,0.00027296,2]
[326765970,1715333444039,-10000.0,0.00023337,2]
[326765971,1715333444049,-2226.06527148,0.00027296,2]
[326765972,1715333444059,-100000.0,0.00027296,2]
[326765973,1715333444068,-126945.0991,0.00027297,2]
[326765974,1715333444078,-7500.0,0.00027297,2]
[326765975,1715333444087,-168.27119768,0.00027297,2]
[326765976,1715333444096,-14222.06340835,0.00027297,2]
[326765977,1715333444105,-156.36738019,0.00027297,2]
[326765978,1715333444114,-327.44643917,0.00027297,2]
[326765979,1715333444123,-200.0,0.00027304,2]
[326765980,1715333444133,-500.0,0.00027304,2]
[326765981,1715333444142,-200.0,0.00027304,2]
[326765982,1715333444151,-368.46008326,0.00027395,2]
[326765983,1715333444160,-521.73158779,0.00027395,2]
[326765984,1715333444170,-873.81182588,0.00027395,2]
[326765985,1715333444179,-1741.42627628,0.00027395,2]
[326765986,1715333444192,-2219.11364841,0.00027395,2]
[326765987,1715333444201,-471.76227117,0.00027395,2]
[326765988,1715333444210,-125.49386788,0.00027396,2]
[326765991,1715333446060,-214.93090384,0.00027396,2]
[326765992,1715333446070,-194.65862487,0.00027396,2]
[326765993,1715333446079,-1271.04962569,0.00027396,2]
[326765994,1715333446090,-1207.22335713,0.00027396,2]
[326765997,1715333602904,-169.30590467,0.00027836,30]
[326765998,1715333602970,-1000.0,0.00028,60]
[326765999,1715333603033,-169.30590467,0.00028247,30]
[326766000,1715333603058,-150.19813991,0.00028247,30]
[326766001,1715333603119,-169.30590467,0.00028658,30]
[326766002,1715333603144,-150.19813991,0.00028658,30]
[326766010,1715334572730,8191.68600617,0.00029,30]
[326766016,1715334632241,-517.0,0.00012598,2]
[326766017,1715334632253,-263.85884581,0.00012598,2]
[326766018,1715334632280,-7580.08039248,0.00012598,2]
[326766019,1715334632290,-4778.90451671,0.00012599,2]
[326766020,1715334632299,-155.0,0.00012699,2]
[326766021,1715334632309,-2361.76986435,0.000127,2]
[326766022,1715334632318,-150.0,0.000127,2]
[326766023,1715334632327,-166.33744184,0.000129,2]
[326766024,1715334632337,-13537.15105256,0.000129,2]
[326766025,1715334632346,-2330.98674592,0.000129,2]
[326766026,1715334632356,-323.13793338,0.000129,2]
[326766027,1715334632365,-165.17255466,0.0001299,2]
[326766028,1715334632374,-151.73,0.0001299,2]
[326766029,1715334632383,-478.60847577,0.00012999,2]
[326766030,1715334632393,-720729.16471428,0.00013,2]
[326766031,1715334632404,-3268.49716594,0.00013,2]
[326766032,1715334632436,-1078.35103245,0.00013,2]
[326766033,1715334632447,-53369.47516183,0.00013,2]
[326766034,1715334632458,-2649.6225874,0.00013,2]
[326766035,1715334632480,-530.0,0.00013,2]
[326766036,1715334632491,-2784.48495281,0.00013,2]
[326766048,1715334638416,-2199.44241342,0.00013,2]
[326766081,1715334641332,-326.025,0.00013,2]
[326766155,1715334646079,-155.0,0.00012999,2]
[326766156,1715334646089,-517.35000001,0.00012999,2]
[326766157,1715334646100,-2413.75,0.00012999,2]
[326766158,1715334646111,-5426.2398258,0.00012999,2]
[326766159,1715334646121,-7313.77948975,0.00013,2]
[326766160,1715334646185,-513.56115077,0.00013,2]
[326766161,1715334646197,-7124.4,0.00013,2]